bitfinex-derivatives/quotes_ETHF0:USTF0_20250220
["timestamp","ask_amount","ask_price","bid_price","bid_amount"]
[1740077826417,3.93751,2740.2,2740.1,0.5655]
[1740077826813,3.93751,2740.2,2740.1,41.3655]
[1740077827413,0.72976,2740.0,2739.9,2.407]
[1740077827612,0.72976,2740.0,2739.9,3.13677]
[1740077827808,0.72976,2740.0,2739.9,43.93677]
[1740077828015,0.72976,2740.0,2739.9,43.207]
[1740077828618,0.5653,2740.1,2739.8,0.5655]
[1740077828821,0.5864,2739.9,2739.6,2.407]
[1740077829115,0.5864,2739.9,2739.6,3.13686]
[1740077829419,0.72981,2739.8,2739.7,0.72984]
[1740077829620,0.72981,2739.8,2739.6,2.407]
[1740077829813,0.72981,2739.8,2739.6,3.13685]
[1740077830009,0.72984,2739.7,2739.6,3.13685]
[1740077830214,0.5864,2739.9,2739.6,3.13685]
[1740077830417,0.5864,2739.9,2739.6,2.407]
[1740077830615,0.5864,2739.9,2739.8,0.72981]
[1740077830616,1.3162,2739.9,2739.8,0.72981]
[1740077830821,1.3162,2739.9,2739.6,2.407]
[1740077831125,1.3162,2739.9,2739.7,0.72982]
[1740077831318,1.3162,2739.9,2739.6,2.407]
[1740077831623,1.3162,2739.9,2739.7,0.72982]
[1740077832323,0.5864,2739.9,2739.7,0.72982]
[1740077832524,1.3162,2739.9,2739.7,0.72982]
[1740077832912,0.5864,2739.9,2739.6,3.13686]
[1740077833423,0.72983,2739.8,2739.7,0.72984]
[1740077833620,1.3162,2739.9,2739.7,0.72984]
[1740077833924,1.31621,2739.9,2739.7,0.72984]
[1740077834224,0.5864,2739.9,2739.6,2.407]
[1740077834522,0.5864,2739.9,2739.7,0.72982]
[1740077834724,0.72981,2739.8,2739.7,0.72982]
[1740077835119,0.5864,2739.9,2739.7,0.72982]
[1740077835319,0.72981,2739.8,2739.7,0.72982]
[1740077835623,0.5864,2739.9,2739.6,2.407]
[1740077835817,1.31621,2739.9,2739.7,0.72982]
[1740077836013,0.72981,2739.8,2739.7,0.72982]
[1740077836413,0.5864,2739.9,2739.6,2.407]
[1740077836619,0.72984,2739.7,2739.6,3.13685]
[1740077837022,0.5864,2739.9,2739.5,1.163]
[1740077837222,0.72984,2739.7,2739.6,0.72985]
[1740077837427,0.72984,2739.7,2739.6,0.72987]
[1740077837727,0.72983,2739.8,2739.7,0.72983]
[1740077837929,0.5864,2739.9,2739.5,3.569]
[1740077838124,1.31621,2739.9,2739.8,0.72981]
[1740077838527,1.31621,2739.9,2739.5,5.39373]
[1740077838528,0.5864,2739.9,2739.5,5.39373]
[1740077838727,1.3162,2739.9,2739.8,0.72981]
[1740077839327,0.5864,2739.9,2739.7,3.2078]
[1740077839522,1.3162,2739.9,2739.8,0.72981]
[1740077839924,3.8055,2740.5,2739.7,3.2078]
[1740077840119,0.5714,2740.4,2740.3,0.72968]
[1740077840324,1.30105,2740.4,2740.3,0.72968]
[1740077840626,1.30105,2740.4,2740.2,1.1333]
[1740077840925,1.30105,2740.4,2740.3,0.72968]
[1740077841327,1.30105,2740.4,2740.2,1.86299]
[1740077841629,1.30105,2740.4,2740.2,1.1333]
[1740077841927,0.72968,2740.3,2740.2,1.86299]
[1740077842430,0.72968,2740.3,2740.2,1.1333]
[1740077842831,0.72971,2740.2,2740.1,2.41147915]
[1740077843129,1.30101,2740.2,2740.1,0.00547915]
[1740077845633,1.30108,2740.4,2740.3,0.72968]
[1740077845826,0.72968,2740.3,2740.2,1.32619]
[1740077846628,0.72968,2740.3,2740.2,1.32621]
[1740077847238,0.5714,2740.4,2740.1,0.00547915]
[1740077847431,1.27121,2740.2,2740.1,0.00547915]
[1740077850036,0.72971,2740.2,2740.1,0.73520915]
[1740077850431,1.1139,2740.4,2740.1,0.00547915]
[1740077850627,1.84357,2740.4,2740.2,0.72968]
[1740077850832,1.84357,2740.4,2740.3,0.5445]
[1740077852542,0.72971,2740.2,2740.1,3.21327915]
[1740077854237,0.72971,2740.2,2740.1,0.00547915]
[1740077854541,0.5714,2740.4,2740.3,0.72968]
[1740077855341,1.30108,2740.4,2740.3,40.8]
[1740077855541,0.5714,2740.4,2740.1,3.21327915]
[1740077855747,0.72971,2740.2,2740.1,0.00547915]
[1740077868654,0.72971,2740.2,2740.1,0.73520915]
[1740077868855,0.72971,2740.2,2740.1,40.80547915]
[1740077870557,0.72971,2740.2,2740.1,0.00547915]
[1740077874553,1.88251,2740.2,2740.1,0.00547915]
[1740077875352,0.72984,2739.7,2739.6,1.31036]
[1740077875556,0.72984,2739.7,2739.6,1.31037]
[1740077875757,0.72984,2739.7,2739.5,44.5514]
[1740077875758,0.72987,2739.6,2739.5,1.27349]
[1740077876555,1.13477915,2739.8,2739.5,0.5436]
[1740077876750,0.72987,2739.6,2739.5,1.27346]
[1740077877661,0.72987,2739.6,2739.5,1.27349]
[1740077879658,2.95933915,2739.8,2739.4,0.5805]
[1740077879857,0.72989,2739.5,2739.4,0.5805]
[1740077880564,2.41763,2739.7,2739.3,0.57587915]
[1740077880867,1.32502,2739.4,2739.3,1.30582915]
[1740077881361,3.75277915,2739.8,2739.3,0.57587915]
[1740077881664,0.00547915,2739.8,2739.7,0.72984]
[1740077882258,0.00547915,2739.8,2739.7,41.52984]
[1740077882464,0.73528915,2739.8,2739.7,40.8]
[1740077882657,1.29428915,2739.8,2739.7,40.8]
[1740077883653,1.29428915,2739.8,2739.7,41.9201]
[1740077884164,0.56447915,2739.8,2739.7,41.9201]
[1740077884366,0.00547915,2739.8,2739.7,42.64994]
[1740077884766,0.73528915,2739.8,2739.7,41.9201]
[1740077884963,0.00547915,2739.8,2739.7,42.64994]
[1740077886268,0.00547915,2739.8,2739.7,1.84994]
[1740077886971,3.2078,2740.7,2739.8,1.82448]
[1740077887166,0.5682,2740.6,2740.2,0.7297]
[1740077887471,0.5682,2740.6,2740.3,1.1129]
[1740077887472,0.72967,2740.4,2740.3,1.1129]
[1740077887671,1.1613,2740.6,2740.3,1.1129]
[1740077887966,0.72964,2740.5,2740.3,1.1129]
[1740077888171,0.72965,2740.4,2740.3,1.1129]
[1740077888969,1.1613,2740.6,2740.3,1.84257]
[1740077889365,0.72965,2740.4,2740.3,1.1129]
[1740077890067,0.72965,2740.4,2740.3,1.84258]
[1740077890774,0.72965,2740.4,2740.3,1.1129]
[1740077890969,0.72965,2740.4,2740.3,1.84258]
[1740077891170,1.1613,2740.6,2740.0,3.2078]
[1740077891473,0.72971,2740.2,2740.1,1.1549]
[1740077891672,1.1613,2740.6,2740.1,1.1549]
[1740077891873,0.72971,2740.2,2740.1,1.88462]
[1740077892372,0.7297,2740.3,2740.2,0.7297]
[1740077892572,0.72971,2740.2,2740.1,1.1549]
[1740077892767,0.72971,2740.2,2740.1,1.88463]
[1740077893875,2.98534,2740.6,2740.1,1.88463]
[1740077894087,0.72971,2740.2,2740.1,1.1549]
[1740077894777,0.72971,2740.2,2740.1,1.88463]
[1740077895677,0.72971,2740.2,2740.1,5.09243]
[1740077898185,0.72971,2740.3,2740.2,0.7297]
[1740077898386,0.72971,2740.2,2740.1,5.09242]
[1740077898586,0.72971,2740.2,2740.1,1.88462]
[1740077898981,0.72971,2740.2,2740.1,1.1549]
[1740077899785,0.72971,2740.2,2740.1,1.88463]
[1740077900186,0.72971,2740.2,2740.1,1.1549]
[1740077900487,0.72971,2740.2,2740.1,1.88463]
[1740077901294,2.98534,2740.6,2740.1,1.1549]
[1740077901586,0.72967,2740.4,2740.3,0.72967]
[1740077901989,0.72967,2740.4,2740.3,41.52967]
[1740077902180,0.72967,2740.4,2740.3,0.72968]
[1740077902386,1.1613,2740.6,2740.3,0.72968]
[1740077902591,0.72966,2740.4,2740.3,0.72967]
[1740077902788,1.1613,2740.6,2740.1,4.3627]
[1740077902992,0.72971,2740.2,2740.1,5.09242]
[1740077903292,0.7297,2740.3,2740.2,0.7297]
[1740077904393,0.72971,2740.2,2740.1,5.09241]
[1740077905891,0.72971,2740.2,2740.1,4.3627]
[1740077906092,0.72971,2740.2,2740.1,5.09243]
[1740077908899,0.72971,2740.2,2740.1,4.3627]
[1740077909292,1.82437,2740.1,2739.6,2.405]
[1740077909496,0.72983,2739.8,2739.7,0.72983]
[1740077909894,0.72983,2739.8,2739.7,40.8]
[1740077910090,0.72987,2739.6,2739.5,3.2078]
[1740077910295,0.72992,2739.4,2739.3,0.00547915]
[1740077910991,0.73005,2738.9,2738.8,3.2078]
[1740077911188,2.36713,2739.4,2738.6,1.1596]
[1740077911189,0.29303232,2739.2,2738.6,1.1596]
[1740077911393,0.595,2738.8,2738.7,40.8]
[1740077911593,0.595,2738.8,2738.7,41.53011]
[1740077911992,0.595,2738.8,2738.6,0.5627]
[1740077912194,0.595,2738.8,2738.6,1.29282]
[1740077912500,0.595,2738.8,2738.7,0.73011]
[1740077913102,0.00547915,2739.0,2738.9,0.73005]
[1740077913402,0.00547915,2739.0,2738.9,3.93785]
[1740077913597,0.00547915,2739.0,2738.9,4.48715]
[1740077914896,0.00547915,2739.0,2738.9,40.8]
[1740077915301,0.58697915,2739.0,2738.9,40.8]
[1740077915708,0.58697915,2739.0,2738.9,41.53005]
[1740077916097,0.00547915,2739.0,2738.9,41.53005]
[1740077916297,0.00547915,2739.0,2738.9,40.8]
[1740077917106,0.56737915,2739.0,2738.9,40.8]
[1740077917507,0.56737915,2739.0,2738.9,41.53005]
[1740077918415,0.56737915,2739.0,2738.9,44.73785]
[1740077918416,0.00547915,2739.0,2738.9,44.73785]
[1740077924609,3.2078,2739.7,2738.9,50.0078]
[1740077924800,3.2078,2739.7,2739.2,5.03272]
[1740077925001,3.2078,2739.7,2739.6,0.72987]
[1740077925708,1.1004,2739.8,2739.7,0.72984]
[1740077925911,7.43704,2740.3,2739.7,0.72984]
[1740077925912,3.2078,2740.3,2739.7,1.82461]
[1740077926118,0.72974,2740.1,2739.9,0.72977]
[1740077926500,1.1034,2740.2,2739.9,0.72977]
[1740077926705,1.1034,2740.2,2740.0,0.72974]
[1740077926910,1.83312,2740.2,2740.0,0.72974]
[1740077927111,1.1034,2740.2,2739.8,0.7298]
[1740077927309,0.72976,2740.1,2739.9,0.72979]
[1740077927513,1.1034,2740.2,2739.7,2.9659]
[1740077927704,1.83313,2740.2,2740.0,0.72976]
[1740077928414,1.83312,2740.2,2740.0,0.72976]
[1740077928809,1.83312,2740.2,2739.7,2.9659]
[1740077928810,1.1034,2740.2,2740.1,0.72973]
[1740077929513,0.547,2740.2,2740.1,0.72973]
[1740077930215,0.547,2740.2,2740.1,1.30833]
[1740077933010,1.30275,2740.5,2740.1,0.5786]
[1740077933214,0.5492,2740.4,2740.2,0.72971]
[1740077933409,1.27886,2740.4,2740.2,0.72971]
[1740077934707,1.27887,2740.4,2740.2,0.72971]
[1740077934907,1.27887,2740.4,2740.2,0.7297]
[1740077935619,0.5492,2740.4,2740.2,0.7297]
[1740077935821,0.72968,2740.3,2739.9,3.21327915]
[1740077936012,0.72968,2740.3,2740.1,0.72971]
[1740077936213,0.72968,2740.3,2739.9,3.21327915]
[1740077936214,0.72968,2740.3,2740.2,0.72971]
[1740077936412,0.72968,2740.3,2739.9,3.21327915]
[1740077936819,0.72969,2740.3,2740.2,0.7297]
[1740077937118,0.72975,2740.1,2740.0,0.72975]
[1740077937918,0.72972,2740.2,2740.0,0.72975]
[1740077938222,0.5492,2740.4,2740.0,0.72975]
[1740077938420,0.5909,2740.1,2740.0,0.72975]
[1740077938617,0.5909,2740.1,2740.0,0.72976]
[1740077939714,1.32063,2740.1,2740.0,0.72976]
[1740077939914,1.32063,2740.1,2739.9,3.21327915]
[1740077940222,0.5909,2740.1,2740.0,0.72976]
[1740077943540,0.5492,2740.4,2740.3,0.72968]
[1740077943832,1.1245,2740.4,2740.3,0.72968]
[1740077945233,1.85415,2740.4,2740.3,0.72968]
[1740077945939,1.85417,2740.4,2740.2,1.27969]
[1740077946636,1.1245,2740.4,2740.2,1.27969]
[1740077946941,1.1245,2740.4,2740.3,0.72968]
[1740077947143,1.1245,2740.4,2740.2,0.55]
[1740077947440,0.72968,2740.3,2740.2,1.27969]
[1740077947640,1.85418,2740.4,2740.2,1.27969]
[1740077947935,0.72968,2740.3,2740.2,1.27969]
[1740077948731,1.1245,2740.4,2740.2,1.27969]
[1740077949133,0.72968,2740.3,2740.2,1.27969]
[1740077949329,1.1245,2740.4,2740.2,0.55]
[1740077949734,0.72968,2740.3,2740.2,1.27969]
[1740077950542,1.1245,2740.4,2740.2,1.27969]
[1740077950840,0.72968,2740.3,2740.2,1.27969]
[1740077951041,0.72968,2740.3,2740.2,1.2797]
[1740077951242,1.1245,2740.4,2740.2,0.55]
[1740077951437,1.85418,2740.4,2740.3,0.72968]
[1740077952239,1.1245,2740.4,2740.2,0.55]
[1740077952438,1.1245,2740.4,2740.3,0.72968]
[1740077953047,1.85415,2740.4,2740.3,0.72968]
[1740077953338,1.1245,2740.4,2740.3,0.72968]
[1740077953544,1.85415,2740.4,2740.3,0.72968]
[1740077954339,1.1245,2740.4,2740.3,0.72968]
[1740077954539,1.85415,2740.4,2740.3,0.72968]
[1740077955341,1.1245,2740.4,2740.3,0.72968]
[1740077955546,0.5492,2740.4,2740.3,0.72968]
[1740077955845,0.5412,2740.7,2740.3,1.82421]
[1740077956045,0.5412,2740.7,2740.2,3.7578]
[1740077956046,1.1158,2740.7,2740.6,0.7296]
[1740077956541,0.5746,2740.7,2740.6,0.7296]
[1740077956740,0.5746,2740.7,2740.6,1.892]
[1740077957237,3.2078,2741.2,2740.6,1.892]
[1740077957441,0.5887,2741.1,2741.0,0.72948]
[1740077957646,1.31817,2741.1,2740.9,0.72951]
[1740077958043,0.7295,2741.0,2740.9,0.72952]
[1740077958242,0.7295,2741.0,2740.8,3.2078]
[1740077958243,0.72952,2741.0,2740.8,3.2078]
[1740077958442,0.72952,2741.0,2740.8,3.93733]
[1740077958637,0.72952,2741.0,2740.9,0.72952]
[1740077958848,0.72952,2741.0,2740.8,3.93734]
[1740077959257,0.72952,2741.0,2740.8,3.2078]
[1740077959548,0.72951,2741.0,2740.8,3.93734]
[1740077959845,1.1575,2741.1,2740.9,0.72951]
[1740077960549,1.1575,2741.1,2740.8,3.2078]
[1740077960751,0.7295,2741.0,2740.8,3.2078]
[1740077960949,0.72951,2741.0,2740.8,3.93734]
[1740077961449,0.72951,2741.0,2740.8,3.2078]
[1740077961649,0.72951,2741.0,2740.9,0.72952]
[1740077961948,0.7295,2741.0,2740.9,0.72952]
[1740077962752,1.31818,2741.1,2740.9,0.7295]
[1740077963150,1.31818,2741.1,2741.0,0.5486]
[1740077963350,0.5887,2741.1,2740.8,3.93732]
[1740077963548,0.72952,2740.9,2740.8,3.2078]
[1740077963850,0.5887,2741.1,2740.8,3.93733]
[1740077964044,0.72952,2740.9,2740.8,3.2078]
[1740077966043,0.72963,2740.5,2740.4,2.9516]
[1740077966241,0.72963,2740.5,2740.4,2.403]
[1740077966446,0.72963,2740.5,2740.4,0.72965]
[1740077966845,2.93538,2740.8,2740.3,44.0078]
[1740077967046,0.72965,2740.5,2740.4,0.72965]
[1740077967246,0.72965,2740.5,2740.4,0.72964]
[1740077967553,0.72965,2740.4,2740.3,44.0078]
[1740077967945,0.72965,2740.4,2740.3,3.2078]
[1740077968347,0.72968,2740.3,2740.2,41.52969]
[1740077968546,0.72968,2740.3,2740.2,40.8]
[1740077970055,0.72968,2740.3,2740.2,41.52971]
[1740077970247,5.60053,2740.6,2740.0,0.5605]
[1740077970448,0.72973,2740.2,2740.1,0.72971]
[1740077970850,5.60053,2740.6,2739.9,4.52174915]
[1740077970851,0.72976,2740.0,2739.9,4.52174915]
[1740077971047,0.72976,2740.0,2739.9,3.79197915]
[1740077971751,0.72976,2740.0,2739.9,3.21327915]
[1740077972743,0.72976,2740.0,2739.9,0.00547915]
[1740077975557,3.49621085,2740.0,2739.4,0.5748]
[1740077975752,0.72995,2739.3,2739.2,0.72995]
[1740077975958,0.72995,2739.3,2739.2,1.30475]
[1740077976160,0.72995,2739.3,2739.2,0.5748]
[1740077978357,0.72997,2739.2,2739.1,3.2078]
[1740077981863,0.73,2739.1,2739.0,3.94329915]
[1740077982057,0.73,2739.1,2739.0,3.21327915]
[1740077985265,0.73,2739.1,2739.0,3.94330915]
[1740077985471,0.73,2739.1,2739.0,3.21327915]
[1740077986578,0.73,2739.1,2739.0,0.00547915]
[1740077987167,0.73,2739.1,2739.0,0.73550915]
[1740077987369,0.73,2739.1,2739.0,0.00547915]
[1740077997970,0.73,2739.1,2738.4,20.96417]
[1740077997971,0.73008,2738.8,2738.4,20.96417]
[1740077998176,0.73013,2738.6,2738.5,1.81976]
[1740078000087,0.73013,2738.6,2738.5,0.5452]
[1740078000784,0.73013,2738.6,2738.5,1.27536]
[1740078000979,0.73013,2738.6,2738.5,0.5452]
[1740078001179,0.73013,2738.6,2738.4,1.32417]
[1740078001180,0.73019,2738.4,2738.3,0.00547915]
[1740078001381,3.93799,2738.4,2738.3,0.00547915]
[1740078002880,3.93799,2738.4,2738.3,1.32088915]
[1740078003083,0.584,2738.5,2738.4,0.73019]
[1740078003384,0.73011,2738.7,2738.6,0.73013]
[1740078003689,0.73011,2738.7,2738.6,40.8]
[1740078003983,3.7462,2738.8,2738.7,0.73011]
[1740078004184,0.73011,2738.7,2738.6,40.8]
[1740078004789,3.7462,2738.8,2738.4,0.5917]
[1740078004992,0.73016,2738.5,2738.4,0.5917]
[1740078005190,0.73014,2738.6,2738.5,0.73015]
[1740078005386,0.73014,2738.6,2738.5,40.8]
[1740078006290,3.7462,2738.8,2738.5,40.8]
[1740078006492,0.73013,2738.6,2738.5,40.8]
[1740078006986,1.26849,2738.8,2738.6,0.73011]
[1740078007191,0.73004,2739.0,2738.7,0.578]
[1740078007390,1.83026915,2739.5,2738.9,0.73004]
[1740078007391,0.73001,2739.1,2738.9,0.73004]
[1740078007690,1.86249,2739.2,2739.0,0.5665]
[1740078007986,0.72995,2739.3,2739.1,0.73]
[1740078008183,0.54627915,2739.5,2739.1,3.8036]
[1740078008382,0.72993,2739.4,2739.1,3.8036]
[1740078008584,0.72997,2739.2,2739.1,3.8036]
[1740078008784,0.00547915,2739.5,2738.9,2.403]
[1740078008785,1.1095,2739.3,2738.9,2.403]
[1740078009087,0.73,2739.2,2739.0,1.32582]
[1740078009393,0.73,2739.2,2739.0,0.5958]
[1740078009692,1.1095,2739.3,2739.0,0.5958]
[1740078009892,0.5408,2739.3,2739.0,0.5958]
[1740078010094,1.30407915,2739.5,2739.2,0.72997]
[1740078010284,0.72993,2739.4,2739.2,0.72997]
[1740078010482,0.5408,2739.4,2739.1,3.7487]
[1740078010682,0.00547915,2739.5,2739.4,0.72992]
[1740078010982,0.00547915,2739.5,2739.4,3.93772]
[1740078011293,5.91064482,2740.3,2739.4,3.7652]
[1740078011485,1.1119,2740.2,2739.5,0.569]
[1740078011791,0.72977,2740.0,2739.8,0.72981]
[1740078011991,1.1119,2740.2,2739.9,0.5574]
[1740078012288,1.84163,2740.2,2739.9,1.28717]
[1740078012587,0.72975,2740.1,2739.9,0.5574]
[1740078012793,1.1119,2740.2,2739.9,0.5574]
[1740078013086,1.1119,2740.2,2739.8,0.00547915]
[1740078013291,0.72979,2739.9,2739.8,0.00547915]
[1740078020691,3.2078,2740.0,2738.9,3.7768]
[1740078020892,0.542,2740.1,2738.9,3.7768]
[1740078020893,0.73,2739.1,2739.0,0.5504]
[1740078021100,3.2078,2739.7,2738.9,3.2078]
[1740078021101,0.73003,2739.0,2738.9,3.2078]
[1740078021389,1.29563,2739.0,2738.9,3.2078]
[1740078022395,0.73008,2738.8,2738.7,1.28596915]
[1740078022792,0.73008,2738.8,2738.7,0.55587915]
[1740078023695,0.73008,2738.8,2738.7,1.28598915]
[1740078024299,0.5656,2739.0,2738.7,0.55587915]
[1740078024592,3.8011,2739.1,2738.7,0.55587915]
[1740078024799,0.73008,2738.8,2738.7,0.55587915]
[1740078025199,1.1461,2739.0,2738.7,0.55587915]
[1740078025394,1.1461,2739.0,2738.7,1.28597915]
[1740078025897,3.2078,2739.1,2738.7,0.55587915]
[1740078026098,0.72997,2739.3,2739.1,0.72999]
[1740078026398,1.1656,2739.4,2739.2,0.5915]
[1740078026598,1.31273,2739.4,2739.2,1.32146]
[1740078026808,1.31273,2739.4,2739.3,0.72995]
[1740078027099,0.72995,2739.3,2739.2,1.32147]
[1740078027495,0.72995,2739.3,2739.2,0.5915]
[1740078028501,0.5828,2739.4,2739.3,0.72995]
[1740078028695,0.5828,2739.7,2739.2,0.5915]
[1740078028897,0.72992,2739.5,2739.3,0.72994]
[1740078029194,0.72988,2739.6,2739.2,0.5915]
[1740078029401,1.31266,2739.7,2739.4,0.72991]
[1740078029898,1.31262,2739.8,2739.6,0.72987]
[1740078030203,1.31262,2739.8,2739.7,0.5826]
[1740078031505,0.5828,2739.8,2739.7,0.5826]
[1740078031698,3.8046,2740.1,2739.7,0.5826]
[1740078031899,1.82441,2740.0,2739.5,3.2078]
[1740078032100,0.72987,2739.6,2739.5,3.93769]
[1740078032301,0.72986,2739.7,2739.5,3.93769]
[1740078032603,5.62896,2740.1,2739.5,3.93769]
[1740078032806,5.62896,2740.1,2739.3,0.5826]
[1740078032807,1.8245,2739.9,2739.3,1.31253]
[1740078033098,0.72991,2739.5,2739.4,0.72992]
[1740078033306,1.82441,2740.0,2739.3,0.5826]
[1740078033497,3.8046,2740.1,2739.6,1.82468]
[1740078033698,0.72976,2740.0,2739.7,0.5914]
[1740078033994,0.5968,2740.1,2740.0,0.72976]
[1740078033995,0.72975,2740.1,2740.0,0.72976]
[1740078034403,0.573,2740.2,2739.9,0.72977]
[1740078034703,0.72976,2740.1,2739.9,0.72977]
[1740078035202,0.72975,2740.1,2739.9,0.72976]
[1740078035506,0.72976,2740.0,2739.9,0.72976]
[1740078035799,0.573,2740.2,2739.8,44.566]
[1740078036200,0.573,2740.2,2740.1,0.72973]
[1740078036201,1.30272,2740.2,2740.1,0.72973]
[1740078036503,3.2078,2740.4,2739.8,44.566]
[1740078036698,0.73517915,2740.3,2740.1,0.72973]
[1740078036899,0.73517915,2740.3,2739.8,44.566]
[1740078036900,0.00547915,2740.3,2740.0,2.402]
[1740078037104,0.00547915,2740.3,2740.2,0.72971]
[1740078038105,0.73515915,2740.3,2740.2,0.72971]
[1740078038303,0.00547915,2740.3,2740.2,0.72971]
[1740078038814,0.73515915,2740.3,2740.2,0.72971]
[1740078039108,0.00547915,2740.3,2740.2,0.72971]
[1740078040105,0.00547915,2740.3,2740.1,3.2078]
[1740078040315,0.72973,2740.1,2740.0,2.402]
[1740078040703,0.00547915,2740.3,2740.0,2.402]
[1740078040907,0.72973,2740.2,2740.0,3.13175]
[1740078041109,0.72973,2740.2,2740.0,2.402]
[1740078041310,0.72973,2740.2,2740.1,0.72973]
[1740078041511,0.72973,2740.2,2740.0,3.13174]
[1740078042005,0.72973,2740.2,2740.0,2.402]
[1740078042206,0.72973,2740.2,2740.1,0.72973]
[1740078042609,0.72973,2740.1,2740.0,3.13175]
[1740078043114,0.00547915,2740.3,2740.0,3.13174]
[1740078043314,0.72971,2740.2,2740.0,3.13174]
[1740078044127,0.72971,2740.2,2740.0,2.402]
[1740078044317,0.72971,2740.2,2740.1,0.72973]
[1740078044609,0.72973,2740.2,2740.1,0.72973]
[1740078045311,0.72973,2740.1,2740.0,3.13174]
[1740078046412,0.72972,2740.2,2740.1,0.72972]
[1740078048116,0.72973,2740.1,2740.0,3.13174]
[1740078048319,0.72972,2740.2,2740.1,0.72972]
[1740078049713,0.72972,2740.2,2740.1,0.72973]
[1740078049920,0.73517915,2740.3,2740.1,0.72973]
[1740078050119,0.73517915,2740.3,2740.0,2.402]
[1740078050120,0.00547915,2740.3,2740.0,5.6098]
[1740078050319,0.00547915,2740.3,2740.2,0.72971]
[1740078050521,0.73515915,2740.3,2740.2,0.72971]
[1740078050914,0.00547915,2740.3,2740.2,0.72971]
[1740078052018,0.73515915,2740.3,2740.2,0.72971]
[1740078052217,0.00547915,2740.3,2740.2,0.72971]
[1740078053024,0.73515915,2740.3,2740.2,0.72971]
[1740078053224,0.72973,2740.2,2740.1,0.72973]
[1740078053525,0.72973,2740.1,2740.0,6.33955]
[1740078053820,1.28923,2740.1,2740.0,6.33955]
[1740078054221,0.5595,2740.1,2739.8,3.766]
[1740078054420,0.72979,2739.9,2739.8,3.766]
[1740078054620,0.72979,2739.9,2739.8,3.2078]
[1740078054819,2.38386,2740.1,2739.5,44.5945]
[1740078055118,0.72987,2739.6,2739.5,44.0078]
[1740078055319,1.82463,2739.7,2739.1,3.7945]
[1740078055517,0.72996,2739.3,2739.1,4.52449]
[1740078055717,0.58,2739.2,2739.1,4.52449]
[1740078057326,1.30997,2739.2,2739.1,3.2078]
[1740078057525,0.58,2739.2,2738.8,3.7568]
[1740078057728,1.31353,2739.1,2738.8,4.48687]
[1740078058029,0.73004,2739.0,2738.8,3.7568]
[1740078058221,0.73005,2738.9,2738.8,3.2078]
[1740078059230,3.7913,2739.1,2738.7,0.00547915]
[1740078059421,0.73008,2738.8,2738.7,0.00547915]
[1740078063027,2.401,2739.0,2738.7,0.00547915]
[1740078063329,2.401,2739.0,2738.8,0.73007]
[1740078063330,0.73006,2738.9,2738.8,0.73007]
[1740078064028,0.73008,2738.8,2738.7,0.00547915]
[1740078064528,2.401,2739.0,2738.7,0.00547915]
[1740078064729,0.5835,2739.1,2738.8,40.8]
[1740078064923,0.58,2739.2,2738.8,40.8]
[1740078064924,0.58,2739.2,2739.1,0.73]
[1740078065124,0.58,2739.2,2739.0,3.2078]
[1740078065324,1.30998,2739.2,2738.8,41.9311]
[1740078065525,0.58,2739.2,2738.9,0.73004]
[1740078065724,0.73,2739.1,2738.9,0.73004]
[1740078066123,0.73002,2739.1,2738.9,0.73004]
[1740078066642,1.30999,2739.2,2739.0,0.73003]
[1740078067040,0.73,2739.1,2738.9,0.73004]
[1740078067237,0.73,2739.1,2738.8,41.9311]
[1740078067443,1.30999,2739.2,2739.0,0.73]
[1740078067646,3.2078,2739.7,2739.0,3.2078]
[1740078067842,0.72991,2739.5,2739.3,0.72993]
[1740078069043,3.7606,2739.7,2739.0,5.6098]
[1740078069543,0.72996,2739.3,2739.1,0.73]
[1740078070138,0.73,2739.1,2739.0,3.2078]
[1740078072045,0.73,2739.1,2739.0,3.93782]
[1740078072438,0.72998,2739.2,2739.1,0.73]
[1740078072747,0.72993,2739.4,2739.0,3.2078]
[1740078072943,0.72987,2739.6,2739.1,1.82501]
[1740078073242,1.82105,2739.7,2739.4,3.2078]
[1740078073444,1.82105,2739.7,2739.5,1.26917]
[1740078073646,1.0912,2739.7,2739.6,0.72987]
[1740078073841,3.2078,2740.0,2739.5,1.1366]
[1740078074042,0.72981,2739.9,2739.7,0.72983]
[1740078074337,3.7829,2740.0,2739.7,0.72983]
[1740078074538,3.7829,2740.0,2739.5,1.7246]
[1740078074941,3.7829,2740.0,2739.9,0.72979]
[1740078075249,3.94297915,2740.3,2740.0,0.72975]
[1740078075440,3.21327915,2740.3,2739.6,1.82468]
[1740078075748,0.73515915,2740.3,2740.1,0.72971]
[1740078075951,0.00547915,2740.3,2740.1,0.72971]
[1740078076748,0.00547915,2740.3,2740.2,0.72971]
[1740078077047,0.73516915,2740.3,2740.1,0.72972]
[1740078077441,0.73516915,2740.3,2740.1,0.72973]
[1740078077949,0.00547915,2740.3,2739.9,40.8]
[1740078078147,0.00547915,2740.3,2740.2,0.72971]
[1740078078344,0.73515915,2740.3,2740.1,0.72972]
[1740078078544,0.00547915,2740.3,2740.2,0.72971]
[1740078079346,0.73515915,2740.3,2740.1,0.72971]
[1740078079744,0.00547915,2740.3,2739.8,5.6098]
[1740078080042,0.73516915,2740.3,2740.1,0.72971]
[1740078081046,0.73515915,2740.3,2740.2,0.72971]
[1740078081447,0.00547915,2740.3,2740.2,0.72971]
[1740078081840,0.73515915,2740.3,2740.2,0.72971]